bitfinex-derivatives/quotes_BNBF0:USTF0_20250710
["timestamp","ask_amount","ask_price","bid_price","bid_amount"]
[1752114188454,3.3329626,670.81,670.06,1.51464971]
[1752114188754,3.3329626,670.81,670.07,1.51464971]
[1752114189055,3.3329626,670.8,670.08,1.51464971]
[1752114189253,3.3329626,670.8,670.09,1.51464971]
[1752114189556,3.3329626,670.81,670.1,1.51464971]
[1752114189754,3.3329626,670.77,670.11,1.51464971]
[1752114189953,3.3329626,670.77,670.12,1.51464971]
[1752114190250,3.3329626,670.76,670.13,1.51464971]
[1752114190453,3.3329626,670.76,670.14,1.51464971]
[1752114190654,3.3329626,670.76,670.05,2.141]
[1752114190655,3.3329626,670.76,670.15,1.51464971]
[1752114190950,3.3329626,670.76,670.05,2.141]
[1752114191250,3.3329626,670.76,670.06,1.51523427]
[1752114191454,3.3329626,670.76,670.07,1.51523427]
[1752114191650,3.3329626,670.76,670.08,1.51523427]
[1752114191951,3.3329626,670.76,670.09,1.51523427]
[1752114192151,3.3329626,670.75,670.1,1.51523427]
[1752114192354,3.3329626,670.75,670.11,1.51523427]
[1752114192553,3.3329626,670.75,670.12,1.51523427]
[1752114192754,3.3329626,670.75,670.13,1.51523427]
[1752114192955,3.3329626,670.67,670.14,1.51523427]
[1752114193255,3.3329626,670.67,670.05,2.141]
[1752114193456,3.3329626,670.67,670.06,1.51530972]
[1752114193755,3.3329626,670.67,670.07,1.51530972]
[1752114194052,3.3329626,670.66,670.08,1.51530972]
[1752114194251,3.3329626,670.66,670.09,1.51530972]
[1752114194552,3.3329626,670.66,670.1,1.51530972]
[1752114194852,3.3329626,670.66,670.11,1.51530972]
[1752114195155,3.3329626,670.66,670.12,1.51530972]
[1752114195355,3.3329626,670.66,670.13,1.51530972]
[1752114195553,3.3329626,670.66,670.14,1.51530972]
[1752114195757,3.3329626,670.66,670.05,2.141]
[1752114195955,3.3329626,670.66,670.06,1.51524858]
[1752114196153,3.3329626,670.66,670.07,1.51524858]
[1752114196354,3.3329626,670.66,670.08,1.51524858]
[1752114196658,3.3329626,670.66,670.09,1.51524858]
[1752114196957,3.3329626,670.65,670.1,1.51524858]
[1752114197154,3.3329626,670.66,670.11,1.51524858]
[1752114197354,3.3329626,670.66,670.12,1.51524858]
[1752114197557,3.3329626,670.66,670.13,1.51524858]
[1752114197859,3.3329626,670.66,670.14,1.51524858]
[1752114198052,3.3329626,670.66,670.05,2.141]
[1752114198356,3.3329626,670.66,670.06,1.51517837]
[1752114198557,3.3329626,670.66,670.07,1.51517837]
[1752114198753,3.3329626,670.66,670.08,1.51517837]
[1752114198956,3.3329626,670.66,670.09,1.51517837]
[1752114199158,3.3329626,670.66,670.1,1.51517837]
[1752114199356,3.3329626,670.65,670.11,1.51517837]
[1752114199555,3.3329626,670.64,670.12,1.51517837]
[1752114199754,3.3329626,670.62,670.13,1.51517837]
[1752114199957,3.3329626,670.62,670.14,1.51517837]
[1752114200159,3.3329626,670.62,670.05,2.141]
[1752114200358,3.3329626,670.62,670.06,1.51514705]
[1752114200559,3.3329626,670.62,670.07,1.51514705]
[1752114200756,3.3329626,670.61,670.08,1.51514705]
[1752114200955,3.3329626,670.61,670.05,2.141]
[1752114200956,3.3329626,670.61,670.09,1.51514705]
[1752114201159,3.3329626,670.61,670.1,1.51514705]
[1752114201357,3.3329626,670.65,670.11,1.51514705]
[1752114201561,3.3329626,670.58,670.05,2.141]
[1752114201761,3.3329626,670.58,670.06,1.51560385]
[1752114201962,3.3329626,670.57,670.07,1.51560385]
[1752114202157,3.3329626,670.57,670.05,2.141]
[1752114202361,3.3329626,670.57,670.06,1.51544511]
[1752114202557,3.3329626,670.57,670.05,2.141]
[1752114202761,3.3329626,670.57,670.06,1.51544511]
[1752114202959,3.3329626,670.57,670.05,2.141]
[1752114203261,5.85214131,671.05,670.05,2.141]
[1752114203262,3.3329626,670.71,670.06,1.51564877]
[1752114203559,3.3329626,670.71,670.05,2.141]
[1752114203759,3.3329626,670.72,670.06,1.51549827]
[1752114203959,3.3329626,670.72,669.76,1.92518393]
[1752114204160,3.3329626,670.72,669.77,1.5154982]
[1752114204364,3.3329626,670.72,669.78,1.5154982]
[1752114204662,3.3329626,670.73,669.79,1.5154982]
[1752114204862,3.3329626,670.73,669.8,1.5154982]
[1752114205059,3.3329626,670.73,669.81,1.5154982]
[1752114205364,3.3329626,670.73,669.82,1.5154982]
[1752114205563,3.3329626,670.73,669.83,1.5154982]
[1752114205860,3.3329626,670.73,669.84,1.5154982]
[1752114206058,3.3329626,670.73,669.85,1.5154982]
[1752114206260,3.3329626,670.73,669.86,1.5154982]
[1752114206463,3.3329626,670.73,669.76,1.92518393]
[1752114206464,3.3329626,670.73,669.87,1.5154982]
[1752114206661,3.3329626,670.73,669.88,1.5154982]
[1752114206865,3.3329626,670.75,669.89,1.5154982]
[1752114207062,3.3329626,670.75,669.9,1.5154982]
[1752114207366,3.3329626,670.75,669.91,1.5154982]
[1752114207561,3.3329626,670.75,669.92,1.5154982]
[1752114207767,3.3329626,670.75,669.93,1.5154982]
[1752114207965,3.3329626,670.75,669.94,1.5154982]
[1752114208169,3.3329626,670.75,669.95,1.5154982]
[1752114208468,3.3329626,670.75,669.96,1.5154982]
[1752114208766,3.3329626,670.75,669.97,1.5154982]
[1752114208971,3.3329626,670.75,669.98,1.5154982]
[1752114209172,3.3329626,670.75,669.99,1.5154982]
[1752114209370,3.3329626,670.75,670.0,1.5154982]
[1752114209575,3.3329626,670.75,670.01,1.5154982]
[1752114209772,3.3329626,670.75,670.02,1.5154982]
[1752114210072,3.3329626,670.75,670.03,1.5154982]
[1752114210279,3.3329626,670.76,670.04,1.5154982]
[1752114210479,3.3329626,670.76,670.05,1.5154982]
[1752114210676,3.3329626,670.76,669.87,1.805]
[1752114210980,3.3329626,670.76,669.88,1.51479355]
[1752114211278,3.3329626,670.76,669.89,1.51479355]
[1752114211479,3.3329626,670.75,669.9,1.51479355]
[1752114211676,3.3329626,670.75,669.91,1.51479355]
[1752114211979,3.3329626,670.75,669.92,1.51479355]
[1752114212175,3.3329626,670.75,669.93,1.51479355]
[1752114212379,3.3329626,670.75,669.94,1.51479355]
[1752114212579,3.3329626,670.75,669.95,1.51479355]
[1752114212879,3.3329626,670.75,669.96,1.51469301]
[1752114213180,3.3329626,670.69,669.97,1.51469301]
[1752114213380,3.3329626,670.69,669.98,1.51469301]
[1752114213677,3.3329626,670.69,669.99,1.51469301]
[1752114213877,3.3329626,670.69,670.0,1.51469301]
[1752114214077,3.3329626,670.69,670.01,1.51469301]
[1752114214284,3.3329626,670.69,670.02,1.51469301]
[1752114214482,3.3329626,670.69,670.03,1.51469301]
[1752114214679,3.3329626,670.69,670.04,1.51469301]
[1752114214982,3.3329626,670.69,670.05,1.51469301]
[1752114215281,3.3329626,670.69,669.87,1.805]
[1752114215480,3.3329626,670.69,669.88,1.51458227]
[1752114215680,3.3329626,670.69,669.89,1.51458227]
[1752114215979,3.3329626,670.69,669.9,1.51458227]
[1752114216279,3.3329626,670.69,669.91,1.51458227]
[1752114216479,3.3329626,670.69,669.92,1.51458227]
[1752114216677,3.3329626,670.66,669.93,1.51458227]
[1752114216881,3.3329626,670.66,669.94,1.51458227]
[1752114217078,3.3329626,670.65,669.95,1.51458227]
[1752114217379,3.3329626,670.65,669.96,1.51458227]
[1752114217581,3.3329626,670.65,669.97,1.51458227]
[1752114217783,3.3329626,670.65,669.98,1.51458227]
[1752114217980,3.3329626,670.65,669.99,1.51458227]
[1752114218182,3.3329626,670.65,670.0,1.51458227]
[1752114218379,3.3329626,670.68,670.01,1.51458227]
[1752114218582,3.3329626,670.68,670.02,1.51458227]
[1752114218879,3.3329626,670.68,670.03,1.51458227]
[1752114219078,3.3329626,670.68,670.04,1.51458227]
[1752114219383,3.3329626,670.68,670.05,1.51458227]
[1752114219579,3.3329626,670.68,669.87,1.805]
[1752114219883,3.3329626,670.68,669.88,1.51542462]
[1752114220080,3.3329626,670.68,669.89,1.51542462]
[1752114220279,3.3329626,670.68,669.9,1.51542462]
[1752114220582,3.3329626,670.68,669.91,1.51542462]
[1752114220782,3.3329626,670.68,669.92,1.51542462]
[1752114220982,3.3329626,670.68,669.93,1.51542462]
[1752114221181,3.3329626,670.68,669.94,1.51542462]
[1752114221383,3.3329626,670.68,669.95,1.51542462]
[1752114221586,0.25943431,671.05,669.96,1.51542462]
[1752114221587,3.3329626,670.65,669.96,1.51542462]
[1752114221786,3.3329626,670.66,669.97,1.51542462]
[1752114221985,3.3329626,670.66,669.98,1.51542462]
[1752114222182,3.3329626,670.66,669.99,1.51542462]
[1752114222387,3.3329626,670.65,670.0,1.51542462]
[1752114222583,3.3329626,670.65,670.01,1.51542462]
[1752114222784,3.3329626,670.65,670.02,1.51542462]
[1752114222982,3.3329626,670.65,670.03,1.51542462]
[1752114223187,3.3329626,670.65,670.04,1.51542462]
[1752114223383,3.3329626,670.65,670.05,1.51542462]
[1752114223584,3.3329626,670.64,669.87,1.805]
[1752114223886,3.3329626,670.64,669.88,1.51552634]
[1752114224087,3.3329626,670.64,669.89,1.51552634]
[1752114224284,3.3329626,670.64,669.9,1.51552634]
[1752114224488,3.32505711,670.64,669.91,1.51552634]
[1752114224683,3.32505711,670.64,669.92,1.51552634]
[1752114224889,0.25943431,671.05,669.93,1.51552634]
[1752114225088,0.25943431,671.05,669.94,1.51552634]
[1752114225289,0.25943431,671.05,669.95,1.51552634]
[1752114225588,0.25943431,671.05,669.96,1.51552634]
[1752114225788,0.25943431,671.05,669.87,1.805]
[1752114225789,0.25943431,671.05,669.97,1.51552634]
[1752114225989,0.25943431,671.05,669.98,1.51552634]
[1752114226287,0.25943431,671.05,669.99,1.51552634]
[1752114226486,5.592707,671.31,670.0,1.51552634]
[1752114226690,0.25951751,670.79,670.01,1.51552634]
[1752114226991,5.592707,671.31,670.02,1.51552634]
[1752114227188,0.25951267,670.6,670.03,1.51552634]
[1752114227386,5.592707,671.31,670.04,1.51552634]
[1752114227586,5.592707,671.31,670.05,1.51552634]
[1752114227786,5.592707,671.31,670.06,1.51552634]
[1752114227986,5.592707,671.29,669.87,1.805]
[1752114228192,5.592707,671.29,669.88,1.51586253]
[1752114228391,5.592707,671.29,669.89,1.51586253]
[1752114228588,5.592707,671.29,669.9,1.51586253]
[1752114228890,0.25952718,670.94,669.91,1.51586253]
[1752114229190,0.25952718,670.94,669.92,1.51586253]
[1752114229389,0.25952718,670.94,669.93,1.51586253]
[1752114229593,0.25952718,670.94,669.87,1.805]
[1752114229594,0.25952718,670.94,669.94,1.51586253]
[1752114229792,0.25952718,670.94,669.95,1.51586253]
[1752114229991,0.25952718,670.94,669.96,1.51586253]
[1752114230287,0.25952718,670.94,669.97,1.51586253]
[1752114230494,0.25952718,670.94,669.98,1.51586253]
[1752114230792,0.25952718,670.94,669.99,1.51586253]
[1752114231093,0.25952718,670.94,670.0,1.51586253]
[1752114231287,0.25952718,670.94,670.01,1.51586253]
[1752114231491,0.25952718,670.94,670.02,1.51586253]
[1752114231691,0.25952718,670.94,670.03,1.51586253]
[1752114231888,0.25952718,670.94,670.04,1.51586253]
[1752114232090,0.25952718,670.94,670.05,1.51586253]
[1752114232290,0.25952718,670.94,670.06,1.51586253]
[1752114232496,0.25952718,670.94,670.07,1.5162769]
[1752114232692,0.25952718,670.94,669.87,1.805]
[1752114232895,0.25952718,670.94,669.88,1.51628056]
[1752114233197,0.25952718,670.94,669.89,1.51628056]
[1752114233495,0.25952718,670.94,669.9,1.51628056]
[1752114233692,0.25952718,670.94,669.87,1.805]
[1752114233693,0.25952718,670.94,669.91,1.51628056]
[1752114233896,0.25952718,670.94,669.92,1.51628056]
[1752114234196,0.25952718,670.94,669.93,1.51628056]
[1752114234396,0.25952718,670.94,669.94,1.51628056]
[1752114234593,0.25952718,670.94,669.95,1.51628056]
[1752114234798,0.25952718,670.94,669.96,1.51628056]
[1752114234994,0.25952718,670.94,669.97,1.51628056]
[1752114235193,0.25952718,670.94,669.98,1.51628056]
[1752114235499,0.25952718,670.94,669.99,1.51628056]
[1752114235692,0.25952718,670.94,670.0,1.51628056]
[1752114235896,0.25952718,670.94,670.01,1.51628056]
[1752114236197,0.25952718,670.94,670.02,1.51628056]
[1752114236394,0.25952718,670.94,670.03,1.51628056]
[1752114236593,0.25952718,670.94,670.04,1.51628056]
[1752114236794,0.25952718,670.94,670.05,1.51628056]
[1752114236994,0.25952718,670.94,670.06,1.51628056]
[1752114237197,0.25952718,670.94,670.07,1.51628056]
[1752114237394,0.25952718,670.94,670.08,1.51628056]
[1752114237593,0.25952718,670.94,670.09,1.51628056]
[1752114237895,0.25952718,670.94,669.87,1.805]
[1752114238097,0.25952718,670.94,669.88,1.5169142]
[1752114238299,0.25952718,670.94,669.89,1.5169142]
[1752114238497,0.25952718,670.94,669.9,1.5169142]
[1752114238793,0.25952718,670.94,669.91,1.5169142]
[1752114238997,0.25952718,670.94,669.92,1.5169142]
[1752114239297,0.25952718,670.94,669.93,1.5169142]
[1752114239597,0.25952718,670.94,669.94,1.5169142]
[1752114239794,0.25952718,670.94,669.95,1.5169142]
[1752114239995,0.25952718,670.94,669.96,1.5169142]
[1752114240295,0.25952718,670.94,669.97,1.5169142]
[1752114240598,0.25952718,670.94,669.98,1.5169142]
[1752114240897,0.25952718,670.94,669.99,1.5169142]
[1752114241097,0.25952718,670.94,669.87,1.805]
[1752114241098,0.25952718,670.94,670.0,1.5169142]
[1752114241297,0.25952718,670.94,670.01,1.5169142]
[1752114241597,0.25952718,670.94,670.02,1.5169142]
[1752114241793,0.25952718,670.94,670.03,1.5169142]
[1752114241998,0.25952718,670.94,670.04,1.5169142]
[1752114242194,0.25952718,670.94,670.05,1.5169142]
[1752114242401,0.25952718,670.94,669.87,1.805]
[1752114242611,0.25952718,670.94,669.88,1.51723844]
[1752114242799,0.25952718,670.94,669.87,1.805]
[1752114242800,0.25952718,670.94,669.89,1.51723844]
[1752114243095,0.25952718,670.94,669.9,1.51723844]
[1752114243297,0.25952718,670.94,669.91,1.51723844]
[1752114243497,0.25952718,670.94,669.92,1.51723844]
[1752114243799,0.25952718,670.94,669.93,1.51723844]
[1752114243998,0.25952718,670.94,669.94,1.51723844]
[1752114244198,0.25952718,670.94,669.95,1.51723844]
[1752114244397,0.25952718,670.94,669.96,1.51723844]
[1752114244598,3.35171668,670.75,669.97,1.51723844]
[1752114244798,3.35171668,670.75,669.98,1.51723844]
[1752114245001,3.35171668,670.75,669.99,1.51723844]
[1752114245204,3.35171668,670.79,670.0,1.51723844]
[1752114245502,3.35171668,670.79,670.01,1.51723844]
[1752114245700,3.35171668,670.79,670.02,1.51723844]
[1752114245898,3.35171668,670.79,670.03,1.51723844]
[1752114246099,3.35171668,670.79,670.04,1.51723844]
[1752114246299,3.35171668,670.8,670.05,1.51723844]
[1752114246501,3.35171668,670.8,670.06,1.51723844]
[1752114246802,3.35171668,670.8,670.07,1.51723844]
[1752114247002,3.35171668,670.8,670.08,1.51723844]
[1752114247201,3.35171668,670.8,670.09,1.51723844]
[1752114247403,3.35171668,670.8,670.1,1.51723844]
[1752114247603,3.35171668,670.8,670.11,1.51723844]
[1752114247803,3.35171668,670.85,670.12,1.51723844]
[1752114248000,3.35171668,670.8,670.13,1.51723844]
[1752114248198,3.35171668,670.8,669.92,1.66730498]
[1752114248199,3.35171668,670.8,670.14,1.51723844]
[1752114248402,3.35171668,670.8,670.15,1.51723844]
[1752114248600,3.35171668,670.8,670.16,1.51723844]
[1752114248803,3.35171668,670.8,670.17,1.51723844]
[1752114248999,3.35171668,670.8,670.18,1.51723844]
[1752114249198,3.35171668,670.8,670.19,1.51723844]
[1752114249402,3.35171668,670.8,670.2,1.51723844]
[1752114249699,3.35171668,670.8,669.92,1.66730498]
[1752114249904,3.35171668,670.8,669.93,1.52057564]
[1752114250103,3.35171668,670.8,669.94,1.52057564]
[1752114250400,3.35171668,670.81,669.95,1.52057564]
[1752114250605,3.35171668,670.81,669.96,1.52057564]
[1752114250804,3.35171668,670.81,669.97,1.52057564]
[1752114251104,3.35171668,670.81,669.98,1.52057564]
[1752114251304,3.35171668,670.81,669.99,1.52057564]
[1752114251506,3.35171668,670.81,670.0,1.52057564]
[1752114251702,3.35171668,670.81,670.01,1.52057564]
[1752114251901,3.35171668,670.81,670.02,1.52057564]
[1752114252101,3.35171668,670.81,670.03,1.52057564]
[1752114252302,3.35171668,670.81,670.04,1.52057564]
[1752114252504,3.35171668,670.78,670.05,1.52057564]
[1752114252705,3.35171668,670.78,670.06,1.52057564]
[1752114252909,3.35171668,670.74,670.07,1.52057564]
[1752114253108,3.35171668,670.74,670.08,1.52057564]
[1752114253410,3.35171668,670.73,670.09,1.52057564]
[1752114253606,3.35171668,670.73,669.96,1.66730498]
[1752114253607,3.35171668,670.73,670.1,1.52057564]
[1752114253810,3.35171668,670.73,670.11,1.52057564]
[1752114254006,3.35171668,670.73,670.12,1.52057564]
[1752114254310,3.35171668,670.73,670.13,1.52057564]
[1752114254606,3.35171668,670.73,670.14,1.52057564]
[1752114254813,3.35171668,670.74,670.15,1.52057564]
[1752114255011,3.35171668,670.74,670.16,1.52057564]
[1752114255208,3.35171668,670.74,670.17,1.52057564]
[1752114255412,3.35171668,670.74,670.18,1.52057564]
[1752114255608,3.35171668,670.73,669.96,1.66730498]
[1752114255813,3.35171668,670.73,669.97,1.52004475]
[1752114256013,3.35171668,670.73,669.98,1.52004475]
[1752114256213,3.35171668,670.73,669.99,1.52004475]
[1752114256409,3.35171668,670.75,670.0,1.52004475]
[1752114256709,3.35171668,670.75,670.01,1.52004475]
[1752114256914,3.35171668,670.75,670.02,1.52004475]
[1752114257111,3.35171668,670.79,670.03,1.52004475]
[1752114257416,3.35171668,670.79,670.04,1.52004475]
[1752114257715,3.35171668,670.79,670.05,1.52004475]
[1752114258015,3.35171668,670.79,670.06,1.52004475]
[1752114258216,3.35171668,670.79,670.07,1.52004475]
[1752114258410,3.35171668,670.79,670.08,1.52004475]
[1752114258715,3.35171668,670.79,670.09,1.52004475]
[1752114259011,3.35171668,670.79,670.1,1.52004475]
[1752114259216,3.35171668,670.79,670.11,1.52004475]
[1752114259417,3.35171668,670.79,670.12,1.52004475]
[1752114259614,3.35171668,670.79,670.13,1.52004475]
[1752114259813,3.35171668,670.79,670.14,1.52004475]
[1752114260018,3.35171668,670.79,670.15,1.52004475]
[1752114260217,3.35171668,670.79,670.16,1.52004475]
[1752114260421,3.35171668,670.79,670.17,1.52004475]
[1752114260718,3.35171668,670.79,669.92,1.66730498]
[1752114260918,3.35171668,670.79,669.93,1.51968164]
[1752114261117,3.35171668,670.79,669.94,1.51968164]
[1752114261314,3.35171668,670.79,669.95,1.51968164]
[1752114261614,3.35171668,670.79,669.96,1.51968164]
[1752114261813,3.35171668,670.79,669.97,1.51968164]
[1752114262017,3.35171668,670.79,669.98,1.51968164]
[1752114262317,3.35171668,670.79,669.99,1.51968164]
[1752114262616,3.35171668,670.79,670.0,1.51968164]
[1752114262813,3.35171668,670.79,670.01,1.51968164]
[1752114263014,3.35171668,670.79,670.02,1.51968164]
[1752114263215,3.35171668,670.79,670.03,1.51968164]
[1752114263418,3.35171668,670.79,670.04,1.51968164]
[1752114263616,3.35171668,670.79,670.05,1.51968164]
[1752114263813,3.35171668,670.8,670.06,1.51968164]
[1752114264018,3.35171668,670.8,670.07,1.51968164]
[1752114264218,3.35171668,670.8,670.08,1.51968164]
[1752114264514,3.35171668,670.8,670.09,1.51968164]
[1752114264714,3.35171668,670.8,670.1,1.51968164]
[1752114264915,3.35171668,670.8,670.11,1.51968164]
[1752114265113,3.35171668,670.81,670.12,1.51968164]
[1752114265414,3.35171668,670.81,670.13,1.51968164]
[1752114265616,3.35171668,670.81,670.14,1.51968164]
[1752114265814,3.35171668,670.81,670.15,1.51968164]
[1752114266117,3.35171668,670.81,670.16,1.51968164]
[1752114266318,3.35171668,670.8,670.17,1.51968164]
[1752114266618,3.35171668,670.8,669.92,1.66730498]
[1752114266817,3.35171668,670.77,669.93,3.18716716]
[1752114267014,3.35171668,670.77,669.94,1.51986218]
[1752114267214,3.35171668,670.77,669.95,1.51986218]
[1752114267514,3.35171668,670.77,669.96,1.51986218]
[1752114267714,3.35171668,670.77,669.97,1.51986218]
[1752114268014,3.35171668,670.81,669.98,1.51986218]
[1752114268216,3.35171668,670.81,669.99,1.51986218]
[1752114268414,3.35171668,670.81,670.0,1.51986218]
[1752114268616,3.35171668,670.81,670.01,1.51986218]
[1752114268818,3.35171668,670.81,670.02,1.51986218]
[1752114269119,3.35171668,670.81,670.03,1.51986218]
[1752114269316,3.35171668,670.81,670.04,1.51986218]
[1752114269515,3.35171668,670.81,670.05,1.51986218]
[1752114269717,3.35171668,670.81,670.06,1.51986218]
[1752114269918,3.35171668,670.81,670.07,1.51986218]
[1752114270116,3.35171668,670.81,670.08,1.51986218]
[1752114270317,3.35171668,670.81,670.09,1.51986218]
[1752114270514,3.35171668,670.81,670.1,1.51986218]
[1752114270817,3.35171668,670.81,670.11,1.51986218]
[1752114271016,3.35171668,670.81,670.12,1.51986218]
[1752114271216,3.35171668,670.81,670.13,1.51986218]
[1752114271420,3.35171668,670.81,670.14,1.51986218]
[1752114271619,3.35171668,670.81,670.15,1.51986218]
[1752114271820,3.35171668,670.81,670.16,1.51986218]
[1752114272020,3.35171668,670.81,670.17,1.51986218]
[1752114272217,3.35171668,670.81,670.02,2.124]
[1752114272421,3.35171668,670.81,670.03,1.52014132]
[1752114272717,3.35171668,670.81,670.04,1.52014132]
[1752114272920,3.35171668,670.81,670.05,1.52014132]
[1752114273121,3.35171668,670.81,670.06,1.52014132]
[1752114273323,3.35171668,670.81,670.07,1.52014132]
[1752114273624,3.35171668,670.81,670.08,1.52014132]
[1752114273821,3.35171668,670.81,670.09,1.52014132]
[1752114274016,3.35171668,670.81,670.1,1.52014132]
[1752114274216,3.35171668,670.81,670.11,1.52014132]
[1752114274518,3.35171668,670.81,670.12,1.52014132]
[1752114274717,3.35171668,670.81,670.13,1.52014132]
[1752114274924,3.35171668,670.8,670.14,1.52014132]
[1752114275124,3.35171668,670.88,670.15,1.52014132]
[1752114275319,3.35171668,670.88,670.16,1.52014132]
[1752114275619,3.35171668,670.88,670.17,1.52014132]
[1752114275818,3.35171668,670.88,670.18,1.52014132]
[1752114276118,3.35171668,670.88,670.02,2.124]
[1752114276317,3.35171668,670.88,670.03,1.5200799]
[1752114276620,3.35171668,670.88,670.04,1.5200799]
[1752114276821,3.35171668,670.88,670.05,1.5200799]
[1752114277016,3.35171668,670.88,670.06,1.5200799]
[1752114277220,3.35171668,670.88,670.07,1.5200799]
[1752114277416,3.35171668,670.88,670.08,1.5200799]
[1752114277617,3.35171668,670.88,670.09,1.5200799]
[1752114277821,3.35171668,670.86,670.1,1.5200799]
[1752114278023,3.35171668,670.86,670.11,1.5200799]
[1752114278321,3.35171668,670.86,670.12,1.5200799]
[1752114278518,3.35171668,670.86,670.13,1.5200799]
[1752114278718,3.35171668,670.86,670.14,1.5200799]
[1752114278920,3.35171668,670.86,670.15,1.5200799]
[1752114279124,3.35171668,670.86,670.16,1.5200799]
[1752114279419,3.35171668,670.86,670.17,1.5200799]
[1752114279618,3.35171668,670.86,670.18,1.5200799]
[1752114279918,3.35171668,670.86,670.02,2.124]
[1752114280127,3.35171668,670.86,670.03,1.52014171]
[1752114280320,3.35171668,670.86,670.04,1.52014171]
[1752114280520,3.35171668,670.86,670.05,1.52014171]
[1752114280720,3.35171668,670.86,670.06,1.52014171]
[1752114280923,3.35171668,670.86,670.07,1.52014171]
[1752114281124,3.35171668,670.85,670.08,1.52014171]
[1752114281325,3.35171668,670.85,670.09,1.52014171]
[1752114281621,3.35171668,670.85,670.02,2.124]
[1752114281622,3.35171668,670.85,670.1,1.52014171]
[1752114281821,3.35171668,670.85,670.11,1.52014171]
[1752114282020,3.35171668,670.85,670.12,1.52014171]
[1752114282221,3.35171668,670.85,670.13,1.52014171]
[1752114282425,3.35171668,670.85,670.14,1.52014171]
[1752114282620,3.35171668,670.85,670.15,1.52014171]
[1752114282820,3.35171668,670.85,670.16,1.52014171]
[1752114283024,3.35171668,670.85,670.17,1.52014171]
[1752114283224,3.35171668,670.84,670.18,1.52014171]
[1752114283423,3.35171668,670.84,670.02,2.124]
[1752114283622,3.35171668,670.84,670.03,1.52030827]
[1752114283825,3.35171668,670.84,670.04,1.52030827]
[1752114284026,3.35171668,670.84,670.05,1.52030827]
[1752114284326,3.35171668,670.84,670.06,1.52030827]
[1752114284522,3.35171668,670.84,670.07,1.52030827]
[1752114284723,3.35171668,670.84,670.08,1.52030827]
[1752114284923,3.35171668,670.75,670.09,1.52030827]
[1752114285126,3.35171668,670.76,670.1,1.52030827]
[1752114285327,3.35171668,670.74,670.11,1.52030827]
[1752114285528,3.35171668,670.74,670.12,1.52030827]
[1752114285725,3.35171668,670.74,670.13,1.52030827]
[1752114285932,3.35171668,670.74,670.14,1.52030827]
[1752114286126,0.25952718,670.94,670.02,2.124]
[1752114286127,3.35171668,670.71,670.15,1.52030827]
[1752114286326,3.35171668,670.7,670.16,1.52030827]
[1752114286628,3.35171668,670.71,670.17,1.52030827]
[1752114286826,3.35171668,670.71,670.18,1.52030827]
[1752114287031,3.35171668,670.71,670.02,2.124]
[1752114287231,3.35171668,670.71,670.03,1.52054051]
[1752114287430,3.35171668,670.71,670.04,1.52054051]
[1752114287629,3.35171668,670.71,670.02,2.124]
[1752114287630,3.35171668,670.71,670.05,1.52054051]
[1752114287830,3.35171668,670.71,670.06,1.52054051]
[1752114288026,3.35171668,670.71,670.07,1.52054051]
[1752114288332,3.35171668,670.71,670.08,1.52054051]
[1752114288526,3.35171668,670.71,670.09,1.52054051]
[1752114288731,3.35171668,670.71,670.1,1.52054051]
[1752114288928,3.35171668,670.71,670.11,1.52054051]
[1752114289129,3.35171668,670.71,670.12,1.52054051]
[1752114289328,3.35171668,670.71,670.13,1.52054051]
[1752114289528,3.35171668,670.71,670.14,1.52054051]
[1752114289728,3.35171668,670.75,670.15,1.52054051]
[1752114289929,3.35171668,670.77,670.16,1.52054051]
[1752114290131,3.35171668,670.77,670.17,1.52054051]
[1752114290333,3.35171668,670.77,670.18,1.52054051]
[1752114290631,3.35171668,670.77,670.19,1.52054051]
[1752114290829,3.35171668,670.77,670.02,2.124]
[1752114291134,3.35171668,670.77,670.03,1.52080613]
[1752114291334,3.35171668,670.77,670.04,1.52080613]
[1752114291535,3.35171668,670.77,670.05,1.52080613]
[1752114291737,3.35171668,670.77,670.06,1.52080613]
[1752114292036,3.35171668,670.77,670.07,1.52080613]
[1752114292234,3.35171668,670.76,670.08,1.52080613]
[1752114292542,3.35171668,670.77,670.09,1.52080613]
[1752114292838,3.35171668,670.77,670.1,1.52080613]
[1752114293038,3.35171668,670.77,670.11,1.52080613]
[1752114293238,3.35171668,670.77,670.12,1.52080613]
[1752114293442,3.35171668,670.77,670.13,1.52080613]
[1752114293640,3.35171668,670.76,670.14,1.52080613]
[1752114293942,3.35171668,670.8,670.15,1.52080613]
[1752114294238,3.35171668,670.79,670.16,1.52080613]
[1752114294445,3.35171668,670.79,670.17,1.52080613]
[1752114294645,3.35171668,670.79,670.18,1.52080613]
[1752114294943,3.35171668,670.79,670.19,1.52080613]
[1752114295140,3.35171668,670.79,670.2,1.52080613]
[1752114295341,3.35171668,670.79,670.02,2.124]
[1752114295543,3.35171668,670.79,670.03,1.52178867]
[1752114295746,3.35171668,670.79,670.04,1.52178867]
[1752114295946,3.35171668,670.79,670.05,1.52178867]
[1752114296146,3.35171668,670.78,670.06,1.52178867]
[1752114296445,3.35171668,670.81,670.07,1.52178867]
[1752114296645,3.35171668,670.81,670.08,1.52178867]